bitfinex-derivatives/quotes_BNBF0:USTF0_20250523
["timestamp","ask_amount","ask_price","bid_price","bid_amount"]
[1748034757228,1.8490179,661.96,660.73,0.3026955]
[1748034757432,1.54672992,661.95,660.73,0.3026955]
[1748034757627,1.8488721,661.94,660.73,0.3026955]
[1748034757830,1.84887667,661.93,660.73,0.3026955]
[1748034758034,1.3779466,661.92,660.73,0.3026955]
[1748034758232,1.84889439,661.91,660.73,0.3026955]
[1748034758433,1.37795573,661.9,660.73,0.3026955]
[1748034758627,1.3779603,661.89,660.73,0.3026955]
[1748034758829,1.37796486,661.88,660.73,0.3026955]
[1748034759030,1.37796943,661.87,660.73,0.3026955]
[1748034759235,1.37797399,661.86,660.73,0.3026955]
[1748034759434,1.37797856,661.85,660.73,0.3026955]
[1748034759638,1.37798312,661.84,660.73,0.3026955]
[1748034759936,1.37798769,661.83,660.73,0.3026955]
[1748034760136,1.37799226,661.82,660.73,0.3026955]
[1748034760338,0.30219697,661.82,660.73,0.3026955]
[1748034776857,0.30219697,661.82,660.77,1.4637048]
[1748034778460,1.11697207,662.07,660.78,0.30267259]
[1748034780163,0.26300774,662.27,660.78,0.30267259]
[1748034780466,1.85573717,662.26,660.78,0.30267259]
[1748034780664,1.85558107,662.25,660.78,0.30267259]
[1748034780864,1.85558563,662.24,660.78,0.30267259]
[1748034781064,1.85559019,662.23,660.78,0.30267259]
[1748034781259,1.85559475,662.22,660.78,0.30267259]
[1748034781480,1.85559931,662.21,660.78,0.30267259]
[1748034781662,1.85560387,662.2,660.78,0.30267259]
[1748034781861,1.85593641,662.19,660.78,0.30267259]
[1748034782060,1.85594097,662.18,660.78,0.30267259]
[1748034782366,1.85594554,662.17,660.78,0.30267259]
[1748034782664,1.8559501,662.16,660.78,0.30267259]
[1748034782865,1.85595466,662.15,660.78,0.30267259]
[1748034783167,1.11697207,662.12,660.84,1.4637048]
[1748034783465,1.85597291,662.11,660.84,1.4637048]
[1748034783759,1.85639633,662.1,660.84,1.4637048]
[1748034783966,1.85640089,662.09,660.84,1.4637048]
[1748034784164,1.85640545,662.08,660.84,1.4637048]
[1748034784365,1.85641002,662.07,660.84,1.4637048]
[1748034784560,1.85641458,662.06,660.84,1.4637048]
[1748034784795,1.85641914,662.05,660.84,1.4637048]
[1748034784962,1.85642371,662.04,660.84,1.4637048]
[1748034785160,1.11697207,662.12,660.84,1.4637048]
[1748034785161,1.85642827,662.03,660.84,1.4637048]
[1748034785361,1.85643283,662.02,660.84,1.4637048]
[1748034785664,1.85827344,662.01,660.78,1.76637739]
[1748034785884,1.858278,662.0,660.78,1.76637739]
[1748034786061,1.5561632,661.99,660.78,1.76637739]
[1748034786260,1.5561632,661.98,660.78,1.76637739]
[1748034786467,1.85829169,661.97,660.78,1.76637739]
[1748034786663,1.5561632,661.96,660.78,1.76637739]
[1748034786965,1.5561632,661.95,660.78,1.76637739]
[1748034787165,1.5561632,661.94,660.78,1.76637739]
[1748034787366,1.55690112,661.93,660.78,1.76637739]
[1748034787566,1.55690112,661.92,660.78,1.76637739]
[1748034787763,1.55690112,661.91,660.78,1.76637739]
[1748034788066,1.55690112,661.9,660.78,1.76637739]
[1748034788264,1.08275789,661.89,660.78,1.76637739]
[1748034788470,1.08275789,661.88,660.78,1.76637739]
[1748034788669,1.08275789,661.87,660.78,1.76637739]
[1748034788867,1.08275789,661.86,660.78,0.30267259]
[1748034789179,1.08345203,661.85,660.78,0.30267259]
[1748034789366,1.08345203,661.84,660.78,0.30267259]
[1748034789570,1.08345203,661.83,660.78,0.30267259]
[1748034789765,1.08345203,661.82,660.78,0.30267259]
[1748034789969,1.08345203,661.81,660.78,0.30267259]
[1748034790170,1.11697207,661.92,660.78,0.30267259]
[1748034790372,1.55848537,661.91,660.78,0.30267259]
[1748034790567,1.55848537,661.9,660.78,0.30267259]
[1748034790766,1.55848537,661.89,660.78,0.30267259]
[1748034790970,1.55848537,661.88,660.78,0.30267259]
[1748034791167,1.55848537,661.87,660.78,0.30267259]
[1748034791372,1.55848537,661.86,660.78,0.30267259]
[1748034791565,1.55870919,661.85,660.78,0.30267259]
[1748034791765,1.08385896,661.84,660.78,0.30267259]
[1748034792071,1.08385896,661.83,660.78,0.30267259]
[1748034792372,1.08385896,661.82,660.78,0.30267259]
[1748034792572,1.08385896,661.81,660.78,0.30267259]
[1748034792768,1.08472171,661.8,660.78,0.30267259]
[1748034792976,1.08472171,661.79,660.78,0.30267259]
[1748034793176,1.11697207,661.9,660.78,0.30267259]
[1748034793372,1.55979829,661.89,660.78,0.30267259]
[1748034793574,1.55979829,661.88,660.78,0.30267259]
[1748034793771,1.55979829,661.87,660.78,0.30267259]
[1748034793975,1.55979829,661.86,660.78,0.30267259]
[1748034794178,1.55979829,661.85,660.78,0.30267259]
[1748034794477,1.55979829,661.84,660.78,0.30267259]
[1748034794674,1.56050345,661.83,660.78,0.30267259]
[1748034794876,1.56050345,661.82,660.81,1.4637048]
[1748034795075,1.56080944,661.81,660.81,1.4637048]
[1748034795277,1.08547578,661.8,660.81,1.4637048]
[1748034795585,1.56098016,661.79,660.81,1.4637048]
[1748034795775,1.56098016,661.78,660.81,1.4637048]
[1748034796076,1.56092923,661.77,660.81,1.4637048]
[1748034796390,1.56111589,661.76,660.81,1.4637048]
[1748034796576,1.08547578,661.75,660.81,1.4637048]
[1748034796778,1.08547578,661.74,660.81,1.4637048]
[1748034796979,1.08547578,661.73,660.81,1.4637048]
[1748034797279,1.08547578,661.72,660.81,1.4637048]
[1748034797474,1.08547578,661.71,660.81,1.4637048]
[1748034797677,1.08547578,661.7,660.81,1.4637048]
[1748034797880,1.08547578,661.69,660.81,1.4637048]
[1748034798080,1.08547578,661.68,660.81,1.4637048]
[1748034798281,1.08547578,661.68,660.78,0.30267259]
[1748034798282,1.11697207,661.76,660.8,1.4637048]
[1748034798480,1.56250075,661.75,660.8,1.4637048]
[1748034798712,1.56250075,661.74,660.8,1.4637048]
[1748034798980,1.56250075,661.73,660.8,1.4637048]
[1748034799180,1.56250075,661.72,660.8,1.4637048]
[1748034799380,1.56250075,661.71,660.8,1.4637048]
[1748034799583,1.56250075,661.7,660.8,1.4637048]
[1748034799880,1.56250075,661.69,660.8,1.4637048]
[1748034800082,1.08664482,661.68,660.8,1.4637048]
[1748034800278,1.08664482,661.67,660.8,1.4637048]
[1748034800482,1.08664482,661.66,660.8,1.4637048]
[1748034800686,1.08664482,661.65,660.8,1.4637048]
[1748034800877,1.08664482,661.64,660.8,1.4637048]
[1748034801078,1.08664482,661.63,660.85,1.4637048]
[1748034801284,1.11697207,661.65,660.85,1.4637048]
[1748034801583,1.08662969,661.64,660.85,1.4637048]
[1748034801783,1.08662969,661.63,660.85,1.4637048]
[1748034801983,1.11697207,661.65,660.85,1.4637048]
[1748034802181,1.0865085,661.64,660.85,1.4637048]
[1748034802386,1.0865085,661.63,660.85,1.4637048]
[1748034802580,1.11697207,661.65,660.85,1.4637048]
[1748034802782,1.08639878,661.64,660.85,1.4637048]
[1748034803086,1.11697207,661.65,660.85,1.4637048]
[1748034803282,1.0863429,661.64,660.85,1.4637048]
[1748034803481,1.11697207,661.65,660.85,1.4637048]
[1748034803680,1.08630664,661.64,660.85,1.4637048]
[1748034803880,1.11697207,661.65,660.85,1.4637048]
[1748034804090,1.08629785,661.64,660.83,1.4637048]
[1748034804286,1.11697207,661.66,660.83,1.4637048]
[1748034804484,1.08624529,661.65,660.83,1.4637048]
[1748034804683,1.08624529,661.64,660.83,1.4637048]
[1748034804981,1.11697207,661.66,660.83,1.4637048]
[1748034805182,1.08628088,661.65,660.83,1.4637048]
[1748034805382,1.08628088,661.64,660.83,1.4637048]
[1748034805582,1.11697207,661.66,660.83,1.4637048]
[1748034805786,1.08619003,661.65,660.83,1.4637048]
[1748034805982,1.08619003,661.64,660.83,1.4637048]
[1748034806182,1.11697207,661.66,660.83,1.4637048]
[1748034806382,1.08614435,661.65,660.83,1.4637048]
[1748034806585,1.08614435,661.64,660.83,1.4637048]
[1748034806787,1.11697207,661.66,660.83,1.4637048]
[1748034806988,1.08611242,661.65,660.82,1.4637048]
[1748034807183,1.11697207,661.67,660.82,1.4637048]
[1748034807387,1.08608272,661.66,660.82,1.4637048]
[1748034807587,1.11697207,661.67,660.82,1.4637048]
[1748034807784,1.08606653,661.66,660.82,1.4637048]
[1748034807988,1.08605097,661.65,660.82,1.4637048]
[1748034808189,1.11697207,661.67,660.82,1.4637048]
[1748034808390,1.08603979,661.66,660.82,1.4637048]
[1748034808589,1.11697207,661.67,660.82,1.4637048]
[1748034808790,1.08600639,661.66,660.82,1.4637048]
[1748034808990,1.08600639,661.65,660.82,1.4637048]
[1748034809187,1.11697207,661.68,660.82,1.4637048]
[1748034809423,1.08597599,661.67,660.82,1.4637048]
[1748034809692,1.08597599,661.66,660.82,1.4637048]
[1748034809892,1.08597599,661.65,660.82,1.4637048]
[1748034810093,1.11697207,661.68,660.82,1.4637048]
[1748034810295,1.08609851,661.67,660.82,1.4637048]
[1748034810494,1.08609851,661.66,660.82,1.4637048]
[1748034810693,1.08609851,661.65,660.82,1.4637048]
[1748034810894,1.08609851,661.64,660.82,1.4637048]
[1748034811094,1.11697207,661.68,660.82,1.4637048]
[1748034811295,1.08623709,661.67,660.82,1.4637048]
[1748034811594,1.08623709,661.66,660.82,1.4637048]
[1748034811798,1.08623709,661.65,660.82,1.4637048]
[1748034811994,1.08623709,661.64,660.82,1.4637048]
[1748034812190,1.11697207,661.68,660.82,1.4637048]
[1748034812492,1.0863635,661.67,660.82,1.4637048]
[1748034812692,1.0863635,661.66,660.82,1.4637048]
[1748034812896,1.0863986,661.65,660.82,1.4637048]
[1748034813191,1.11697207,661.63,660.9,1.4637048]
[1748034816599,1.11697207,661.67,660.81,1.4637048]
[1748034816798,1.08601507,661.66,660.81,1.4637048]
[1748034816998,1.08601507,661.65,660.81,1.4637048]
[1748034817196,1.08601507,661.64,660.81,1.4637048]
[1748034817399,1.11697207,661.67,660.81,1.4637048]
[1748034817593,1.08601613,661.66,660.81,1.4637048]
[1748034817795,1.08601613,661.65,660.81,1.4637048]
[1748034817997,1.08601613,661.64,660.81,1.4637048]
[1748034818227,1.11697207,661.67,660.81,1.4637048]
[1748034818397,1.08601411,661.66,660.81,1.4637048]
[1748034818597,1.08601411,661.65,660.81,1.4637048]
[1748034818800,1.08601411,661.64,660.81,1.4637048]
[1748034819000,1.11697207,661.67,660.81,1.4637048]
[1748034819204,1.08601132,661.66,660.81,1.4637048]
[1748034819402,1.08601132,661.65,660.82,1.4637048]
[1748034819595,1.08601132,661.64,660.82,1.4637048]
[1748034819797,1.11697207,661.68,660.82,1.4637048]
[1748034819996,1.08600929,661.67,660.82,1.4637048]
[1748034820197,1.08600929,661.66,660.82,1.4637048]
[1748034820494,1.08600929,661.65,660.82,1.4637048]
[1748034820797,1.08600929,661.64,660.82,1.4637048]
[1748034820995,1.11697207,661.68,660.82,1.4637048]
[1748034821199,1.08599686,661.67,660.82,1.4637048]
[1748034821399,1.08599686,661.66,660.82,1.4637048]
[1748034821600,1.08599686,661.65,660.82,1.4637048]
[1748034821797,1.11697207,661.68,660.82,1.4637048]
[1748034822001,1.08594037,661.67,660.82,1.4637048]
[1748034822198,1.08594053,661.67,660.82,1.4637048]
[1748034822513,1.08594053,661.66,660.82,1.4637048]
[1748034822797,1.08594053,661.65,660.82,1.4637048]
[1748034823001,1.08594053,661.64,660.81,1.4637048]
[1748034823300,1.11697207,661.68,660.81,1.4637048]
[1748034823503,1.08586259,661.67,660.81,1.4637048]
[1748034823697,1.08586259,661.66,660.81,1.4637048]
[1748034823898,1.08586259,661.65,660.81,1.4637048]
[1748034824101,1.11697207,661.68,660.81,1.4637048]
[1748034824302,1.08586144,661.67,660.81,1.4637048]
[1748034824498,1.08586144,661.66,660.81,1.4637048]
[1748034824705,1.08586144,661.65,660.81,1.4637048]
[1748034825005,1.11697207,661.68,660.81,1.4637048]
[1748034825806,1.11697207,661.68,660.82,0.30265427]
[1748034826706,1.11697207,662.13,661.04,1.4637048]
[1748034826907,1.56177475,662.12,661.04,1.4637048]
[1748034827108,1.56177475,662.11,661.04,1.4637048]
[1748034827309,1.56165636,662.1,661.04,1.4637048]
[1748034827502,1.56165636,662.09,661.04,1.4637048]
[1748034827802,1.08620752,662.08,661.04,1.4637048]
[1748034828006,1.08620752,662.07,661.04,1.4637048]
[1748034828205,1.08620752,662.06,661.04,1.4637048]
[1748034828505,1.08620752,662.05,661.04,1.4637048]
[1748034828702,1.11697207,662.13,661.04,1.4637048]
[1748034828902,1.56098715,662.12,661.04,1.4637048]
[1748034829102,1.56098466,662.11,661.04,1.4637048]
[1748034829407,1.08562306,662.1,661.04,1.4637048]
[1748034829705,1.08562306,662.09,661.04,1.4637048]
[1748034829911,1.08562306,662.08,661.04,1.4637048]
[1748034830202,1.11697207,662.13,661.04,1.4637048]
[1748034830203,1.08562306,662.07,661.04,1.4637048]
[1748034830404,1.08562306,662.06,661.04,1.4637048]
[1748034830605,1.08562306,662.05,661.04,1.4637048]
[1748034830806,1.11697207,662.13,661.04,1.4637048]
[1748034831102,1.56026891,662.12,660.97,1.4637048]
[1748034831307,1.08512281,662.11,660.97,1.4637048]
[1748034831506,1.08512281,662.1,660.97,1.4637048]
[1748034831806,1.08512281,662.09,660.97,1.4637048]
[1748034832005,1.08512281,662.08,660.97,1.4637048]
[1748034832201,1.08512281,662.07,660.97,1.4637048]
[1748034832404,1.11697207,662.18,660.97,1.4637048]
[1748034832605,1.55974045,662.17,660.97,1.4637048]
[1748034832804,1.55974045,662.16,660.97,1.4637048]
[1748034833005,1.55974045,662.15,660.97,1.4637048]
[1748034833202,1.08476588,662.14,660.97,1.4637048]
[1748034833403,1.08476588,662.13,660.97,1.4637048]
[1748034833607,1.11697207,662.18,660.97,1.4637048]
[1748034833804,1.08459394,662.17,660.97,1.4637048]
[1748034834005,1.08459394,662.16,660.97,1.4637048]
[1748034834207,1.08459394,662.15,661.04,1.4637048]
[1748034834409,1.08459394,662.14,661.04,1.4637048]
[1748034834611,1.11697207,662.25,661.04,1.4637048]
[1748034834811,1.55906341,662.24,661.04,1.4637048]
[1748034835111,1.55906341,662.23,661.04,1.4637048]
[1748034835312,1.55906341,662.22,661.04,1.4637048]
[1748034835608,1.55906341,662.21,661.04,1.4637048]
[1748034835805,1.55893916,662.2,661.04,1.4637048]
[1748034836009,1.08430138,662.19,661.04,1.4637048]
[1748034836205,1.08430138,662.18,661.04,1.4637048]
[1748034836410,1.08430138,662.17,661.04,1.4637048]
[1748034836612,1.08430138,662.16,661.04,1.4637048]
[1748034836906,1.08430138,662.15,661.03,1.4637048]
[1748034837110,1.11697207,662.27,661.03,1.4637048]
[1748034837411,1.55804611,662.26,661.03,1.4637048]
[1748034837610,1.55804611,662.25,661.03,1.4637048]
[1748034837811,1.55804611,662.24,661.03,1.4637048]
[1748034838009,1.55804611,662.23,661.03,1.4637048]
[1748034838206,1.08359411,662.22,661.03,1.4637048]
[1748034838406,1.08359411,662.21,661.03,1.4637048]
[1748034838607,1.08359411,662.2,661.03,1.4637048]
[1748034838911,1.08359411,662.19,661.03,1.4637048]
[1748034839111,1.08359411,662.18,661.03,1.4637048]
[1748034839312,1.08359411,662.17,661.03,1.4637048]
[1748034839511,1.08359411,662.16,661.09,1.4637048]
[1748034839807,1.11697207,662.25,661.09,1.4637048]
[1748034840011,1.5575041,662.24,661.09,1.4637048]
[1748034840212,1.0832175,662.23,661.09,1.4637048]
[1748034840511,1.0832175,662.22,661.09,1.4637048]
[1748034840709,1.0832175,662.21,661.09,1.4637048]
[1748034840909,1.11697207,662.25,661.09,1.4637048]
[1748034841111,1.08329131,662.24,661.09,1.4637048]
[1748034841308,1.08331709,662.23,661.09,1.4637048]
[1748034841508,1.08331709,662.22,661.09,1.4637048]
[1748034841806,1.11697207,662.25,661.09,1.4637048]
[1748034842007,1.08302024,662.24,661.09,1.4637048]
[1748034842315,1.08302024,662.23,661.09,1.4637048]
[1748034842507,1.11697207,662.25,661.09,1.4637048]
[1748034842712,1.08266697,662.24,661.27,1.4637048]
[1748034842912,1.08266697,662.23,661.27,1.4637048]
[1748034843112,1.11697207,662.25,661.27,1.4637048]
[1748034843412,1.08237612,662.24,661.27,1.4637048]
[1748034843612,1.11697207,662.25,661.27,1.4637048]
[1748034843814,1.08236736,662.24,661.27,1.4637048]
[1748034844014,1.11697207,662.25,661.27,1.4637048]
[1748034844631,1.08207005,662.24,661.27,1.4637048]
[1748034844809,1.11697207,662.25,661.27,1.4637048]
[1748034845514,1.11697207,662.27,661.24,1.4637048]
[1748034848316,1.11697207,662.39,661.24,1.4637048]
[1748034848518,1.08056472,662.38,661.21,1.4637048]
[1748034848814,1.08056472,662.37,661.21,1.4637048]
[1748034849015,1.08056472,662.36,661.21,1.4637048]
[1748034849216,1.11697207,662.39,661.21,1.4637048]
[1748034850718,1.11697207,662.39,661.21,1.76618056]
[1748034852018,1.11697207,662.56,661.21,0.30247576]
[1748034852320,1.07930274,662.55,661.21,0.30247576]
[1748034852529,1.07930274,662.54,661.21,0.30247576]
[1748034852717,1.07930274,662.53,661.21,0.30247576]
[1748034852920,1.07930274,662.52,661.21,0.30247576]
[1748034853217,1.07930274,662.51,661.21,0.30247576]
[1748034853417,1.11697207,662.56,661.21,0.30247576]
[1748034855820,1.11697207,662.97,661.35,1.4637048]
[1748034856021,1.84867548,662.96,661.37,0.30240258]
[1748034856218,1.54699816,662.95,661.37,0.30240258]
[1748034856424,1.54699816,662.94,661.37,0.30240258]
[1748034856725,1.54699816,662.93,661.37,0.30240258]
[1748034856917,1.07494958,662.92,661.37,0.30240258]
[1748034857116,1.07494958,662.91,661.37,0.30240258]
[1748034857317,1.07494958,662.9,661.37,0.30240258]
[1748034857521,1.07494958,662.89,661.37,0.30240258]
[1748034857820,1.07494958,662.88,661.37,0.30240258]
[1748034858021,1.07494958,662.87,661.37,0.30240258]
[1748034858320,1.07494958,662.86,661.37,0.30240258]
[1748034858521,1.07494958,662.85,661.37,0.30240258]
[1748034858821,1.07494958,662.84,661.37,0.30240258]
[1748034859120,1.07494958,662.83,661.37,0.30240258]
[1748034859321,0.30167732,662.96,661.37,0.30240258]
[1748034859651,1.07248045,662.95,661.37,0.30240258]
[1748034859823,1.8451024,662.94,661.37,0.30240258]
[1748034860021,1.37417142,662.93,661.37,0.30240258]
[1748034860217,1.37417597,662.92,661.37,0.30240258]
[1748034860421,1.37418052,662.91,661.37,0.30240258]
[1748034860621,1.07248045,662.9,661.37,0.30240258]
[1748034860824,1.07248045,662.89,661.37,0.30240258]
[1748034861016,1.07248045,662.88,661.37,0.30240258]
[1748034861318,1.07248045,662.87,661.37,0.30240258]
[1748034861520,1.37420328,662.86,661.37,0.30240258]
[1748034861721,1.07248045,662.85,661.37,0.30240258]
[1748034861921,1.07248045,662.84,661.37,0.30240258]
[1748034862117,1.07248045,662.83,661.37,0.30240258]
[1748034862318,0.30172283,662.86,661.37,0.30240258]
[1748034862523,1.0714192,662.85,661.37,0.30240258]
[1748034862723,1.0714192,662.84,661.37,0.30240258]
[1748034862924,1.07141432,662.83,661.37,0.30240258]
[1748034863128,0.30172283,662.86,661.37,0.30240258]
[1748034863324,1.07115866,662.85,661.37,0.30240258]
[1748034863524,1.07115866,662.84,661.37,0.30240258]
[1748034863824,1.07115866,662.83,661.37,0.30240258]
[1748034864023,0.30172283,662.86,661.37,0.30240258]
[1748034864226,1.07118986,662.85,661.37,0.30240258]
[1748034864437,1.07118986,662.84,661.37,0.30240258]
[1748034864622,1.07094409,662.83,661.37,0.30240258]
[1748034864821,0.30172283,662.86,661.37,0.30240258]
[1748034865018,1.07094416,662.85,661.37,0.30240258]
[1748034865219,1.07094416,662.84,661.37,0.30240258]
[1748034865521,1.07094416,662.83,661.37,0.30240258]
[1748034865720,0.30172283,662.86,661.37,0.30240258]
[1748034865917,1.07077529,662.85,661.37,0.30240258]
[1748034866123,1.07077529,662.84,661.37,0.30240258]
[1748034866320,0.30172283,662.86,661.37,0.30240258]
[1748034866519,1.07064453,662.85,661.37,0.30240258]
[1748034866723,1.07064453,662.84,661.37,0.30240258]
[1748034866925,0.30172283,662.86,661.37,0.30240258]
[1748034867124,1.07064464,662.85,661.37,0.30240258]
[1748034867325,1.07064464,662.84,661.37,0.30240258]
[1748034867529,0.30172283,662.86,661.37,0.30240258]
[1748034867828,1.07054938,662.85,661.37,0.30240258]
[1748034868024,1.07054938,662.84,661.37,0.30240258]
[1748034868221,0.30172283,662.86,661.37,0.30240258]
[1748034868524,1.07048785,662.85,661.37,0.30240258]
[1748034868831,1.07048785,662.84,661.37,0.30240258]
[1748034869023,0.30172283,662.86,661.37,0.30240258]
[1748034869228,1.07057606,662.85,661.37,0.30240258]
[1748034869425,1.07057606,662.84,661.37,0.30240258]
[1748034869627,0.30172283,662.86,661.37,0.30240258]
[1748034869830,1.07044609,662.85,661.37,0.30240258]
[1748034870026,0.30172283,662.86,661.37,0.30240258]
[1748034870232,1.07040824,662.85,661.37,0.30240258]
[1748034875435,1.07063184,662.84,661.37,0.30240258]
[1748034875641,1.07063184,662.83,661.37,0.30240258]
[1748034875842,0.30172283,662.86,661.37,0.30240258]
[1748034876140,1.06936112,662.85,661.37,0.30240258]
[1748034876340,0.30172283,662.86,661.37,0.30240258]
[1748034881142,1.0716876,662.85,661.37,0.30240258]
[1748034881341,0.30172283,662.86,661.37,0.30240258]
[1748034881568,1.07162646,662.85,661.37,0.30240258]
[1748034881835,0.30172283,662.86,661.37,0.30240258]
[1748034882036,1.07160966,662.85,661.37,0.30240258]
[1748034882241,0.30172283,662.86,661.37,0.30240258]
[1748034882442,1.07209812,662.85,661.37,0.30240258]
[1748034882649,0.30172283,662.86,661.37,0.30240258]
[1748034882841,1.07208246,662.85,661.37,0.30240258]
[1748034883043,1.07270277,662.84,661.37,0.30240258]
[1748034883241,0.30172283,662.86,661.37,0.30240258]
[1748034883438,1.072712,662.85,661.37,0.30240258]
[1748034883636,0.30172283,662.86,661.37,0.30240258]
[1748034885543,0.30172283,662.86,661.48,1.4637048]
[1748034885736,0.30172283,662.86,661.5,0.30234315]
[1748034888074,0.30172283,662.86,661.6,1.4637048]
[1748034888245,0.30172283,662.86,661.61,0.30229289]
[1748034891046,0.30172283,662.86,661.63,1.4637048]
[1748034891246,0.30172283,662.86,661.64,0.30227918]
[1748034894152,1.07676545,662.85,661.64,0.30227918]
[1748034894351,0.30172283,662.86,661.74,1.4637048]
[1748034894550,1.07679228,662.85,661.74,1.4637048]
[1748034894849,0.30172283,662.86,661.74,1.4637048]
[1748034895049,1.07677621,662.85,661.74,1.4637048]
[1748034895252,1.07709054,662.84,661.74,1.4637048]
[1748034895444,0.30172283,662.86,661.74,1.4637048]
[1748034898049,0.30172283,662.86,661.74,1.7659383]
[1748034898243,0.30172283,662.86,661.75,0.30222893]
[1748034898449,0.30172283,662.86,661.96,1.08294806]
[1748034899846,1.11697207,663.04,661.96,1.08294806]
[1748034900077,1.07884819,663.03,661.96,1.08294806]
[1748034900350,1.11697207,663.04,661.96,1.08294806]
[1748034901745,1.11697207,663.15,662.1,1.08294806]
[1748034901949,1.55225675,663.14,662.1,1.08294806]
[1748034902152,1.55233674,663.13,662.1,1.08294806]
[1748034902450,1.07914865,663.12,662.1,1.08294806]
[1748034902750,1.07914865,663.11,662.1,1.08294806]
[1748034902950,1.11697207,663.15,662.1,1.08294806]
[1748034903147,1.07947568,663.14,662.1,1.08294806]
[1748034903449,1.07947568,663.13,662.1,1.08294806]
[1748034903662,1.07947568,663.14,662.1,1.08294806]
[1748034903871,1.11697207,663.15,662.1,1.08294806]
[1748034905556,1.11697207,663.74,662.51,1.08294806]
[1748034905754,1.54309404,663.73,662.51,1.08294806]
[1748034906054,1.54309404,663.72,662.51,1.08294806]
[1748034906257,1.54309404,663.71,662.51,1.08294806]
[1748034906554,1.54309404,663.7,662.51,1.08294806]
[1748034906855,1.54309404,663.69,662.51,1.08294806]
[1748034907049,0.4685788,663.68,662.51,1.08294806]
[1748034907250,1.54249983,663.67,662.51,1.08294806]
[1748034907453,1.84385895,663.66,662.51,1.08294806]
[1748034907751,1.54249983,663.65,662.51,1.08294806]
[1748034907951,1.54249983,663.64,662.51,1.08294806]
[1748034908153,1.54249983,663.63,662.66,1.08294806]
[1748034908349,1.54249983,663.62,662.66,1.08294806]
[1748034908550,1.54249983,663.61,662.66,1.08294806]
[1748034908753,1.54249983,663.6,662.66,1.08294806]
[1748034908949,1.54227348,663.59,662.66,1.08294806]
[1748034909157,1.54227348,663.58,662.66,1.08294806]
[1748034909356,1.84367348,663.57,662.67,0.96663857]
[1748034909656,1.84367802,663.56,662.67,0.96663857]
[1748034909856,1.84368256,663.55,662.67,0.96663857]
[1748034910057,1.54227348,663.54,662.67,0.96663857]
[1748034910355,1.54227348,663.53,662.67,0.96663857]
[1748034910555,1.07409903,663.52,662.67,0.96663857]
[1748034910851,1.07409903,663.51,662.67,0.96663857]
[1748034911060,1.07409903,663.5,662.68,2.04958663]
[1748034911254,1.07409903,663.49,662.68,2.04958663]
[1748034911455,1.07409903,663.48,662.68,2.04958663]
[1748034911655,1.07409903,663.47,662.68,2.04958663]
[1748034911855,1.07409903,663.46,662.68,2.04958663]
[1748034912052,1.07409903,663.45,662.68,2.04958663]
[1748034912256,1.07409903,663.44,662.68,2.04958663]
[1748034912457,1.07409903,663.43,662.68,2.04958663]
[1748034912656,1.07409903,663.42,662.69,0.96663857]
[1748034912856,0.30140908,663.55,662.69,0.96663857]
[1748034913055,1.54144648,663.54,662.69,0.96663857]
[1748034913253,1.54144648,663.53,662.69,0.96663857]
[1748034913453,1.07357486,663.52,662.69,0.96663857]
[1748034913652,1.07357486,663.51,662.69,0.96663857]
[1748034913856,1.07357486,663.5,662.69,0.96663857]
[1748034914056,1.07357486,663.49,662.7,0.96663857]
[1748034914256,1.07357486,663.48,662.7,0.96663857]
[1748034914456,1.07357486,663.47,662.7,0.96663857]
[1748034914656,1.07357486,663.46,662.7,0.96663857]
[1748034914854,1.07357486,663.45,662.7,0.96663857]
[1748034915054,1.07357486,663.44,662.7,0.96663857]
[1748034915254,0.30140908,663.55,662.7,0.96663857]
[1748034915557,1.07326392,663.54,662.7,0.96663857]
[1748034915756,1.07326392,663.53,662.71,0.96663857]
[1748034916054,1.07344923,663.52,662.71,0.96663857]
[1748034916255,1.07344923,663.51,662.71,0.96663857]
[1748034916460,0.30140908,663.55,662.71,0.96663857]
[1748034916656,1.07314047,663.54,662.71,0.96663857]
[1748034916856,0.30140908,663.55,662.71,0.96663857]
[1748034917063,1.07321484,663.54,662.72,0.96663857]
[1748034917361,0.30140908,663.55,662.72,0.96663857]
[1748034917562,1.07304758,663.54,662.72,0.96663857]
[1748034917762,0.30140908,663.55,662.72,0.96663857]
[1748034917961,0.30140908,663.55,662.73,0.96663857]
[1748034918459,1.07274655,663.54,662.73,0.96663857]
[1748034918663,0.30140908,663.55,662.73,0.96663857]
[1748034918867,1.07274336,663.54,662.73,0.96663857]
[1748034919059,0.30140908,663.55,662.73,0.96663857]
[1748034919265,1.07294964,663.54,662.73,0.96663857]
[1748034919465,0.30140908,663.55,662.74,0.96663857]
[1748034919661,1.07261577,663.54,662.74,0.96663857]
[1748034919866,0.30140908,663.55,662.74,0.96663857]
[1748034920066,1.07261068,663.54,662.74,0.96663857]
[1748034920266,0.30140908,663.55,662.74,0.96663857]
[1748034920766,0.30140908,663.55,662.75,0.96663857]
[1748034921064,1.07233314,663.54,662.75,0.96663857]
[1748034921367,0.30140908,663.55,662.75,0.96663857]
[1748034921768,0.30140908,663.55,662.5,1.4637048]
[1748034921769,0.30140908,663.55,662.76,0.96663857]
[1748034922965,0.30140908,663.55,662.77,0.96663857]
[1748034924670,1.07160702,663.54,662.77,0.96663857]
[1748034924894,0.30140908,663.55,662.78,0.96663857]